bitfinex/quotes_ETHUSD_20251017
["timestamp","ask_amount","ask_price","bid_price","bid_amount"]
[1760700862612,5.17420222,3807.2,3807.1,0.001]
[1760700863040,15.88220622,3807.2,3807.1,0.001]
[1760700863350,7.84190622,3807.2,3807.1,0.001]
[1760700863563,5.17420222,3807.2,3807.1,0.001]
[1760700866646,4.35460222,3807.2,3807.1,0.001]
[1760700866958,0.41206396,3807.4,3807.1,0.001]
[1760700867141,2.62615625,3807.9,3807.1,0.001]
[1760700867142,4.35460222,3807.2,3807.1,0.001]
[1760700867493,1.728,3807.5,3807.1,0.001]
[1760700867643,2.62658224,3807.3,3807.1,0.001]
[1760700867839,4.35460222,3807.2,3807.1,0.001]
[1760700870153,1.728,3807.2,3807.1,0.001]
[1760700870472,4.35460222,3807.2,3807.1,0.001]
[1760700871071,1.728,3807.2,3807.1,0.001]
[1760700871274,1.728,3807.2,3807.1,0.2174]
[1760700871476,1.728,3807.2,3807.1,0.6809]
[1760700871675,1.728,3807.2,3807.1,0.2174]
[1760700872057,4.35460222,3807.2,3807.1,0.001]
[1760700873388,5.17420222,3807.2,3807.1,0.001]
[1760700873687,8.68205422,3807.2,3807.1,0.001]
[1760700873984,5.21999379,3807.2,3807.1,0.001]
[1760700874355,5.03399379,3807.2,3807.1,0.001]
[1760700874556,8.64674279,3807.2,3807.1,0.001]
[1760700874764,8.18371979,3807.2,3807.1,0.001]
[1760700875187,18.287471,3807.1,3806.7,0.001]
[1760700875381,22.63822108,3806.8,3806.7,0.001]
[1760700875775,22.82932108,3806.8,3806.7,0.001]
[1760700875993,19.26232208,3806.8,3806.7,0.001]
[1760700876592,21.49680808,3806.8,3806.7,0.001]
[1760700876798,19.67444794,3806.8,3806.7,0.001]
[1760700876960,18.82704794,3806.8,3806.7,0.001]
[1760700877587,19.46064794,3806.8,3806.7,0.001]
[1760700877788,19.65194794,3806.8,3806.7,0.001]
[1760700877989,19.46064794,3806.8,3806.7,0.001]
[1760700878176,18.82704794,3806.8,3806.7,0.001]
[1760700878790,2.62687821,3806.8,3806.7,0.001]
[1760700878989,0.2134,3807.5,3806.7,0.001]
[1760700878990,14.06004387,3808.0,3806.7,0.4645]
[1760700879197,0.1312,3806.8,3806.7,0.4645]
[1760700879396,0.1312,3806.8,3806.7,0.001]
[1760700879965,2.62687821,3806.8,3806.7,0.001]
[1760700880166,2.62683022,3806.9,3806.7,0.001]
[1760700880363,2.62687821,3806.8,3806.7,0.001]
[1760700880968,2.62667529,3807.1,3806.7,0.001]
[1760700881169,2.6268229,3806.9,3806.7,0.001]
[1760700881570,4.35454972,3807.3,3806.8,0.4635]
[1760700881804,0.6336,3807.7,3806.9,0.4635]
[1760700882007,2.62680352,3807.0,3806.7,0.001]
[1760700882608,0.6336,3807.7,3806.7,0.001]
[1760700882789,1.728,3807.1,3806.8,0.4635]
[1760700883001,2.6267255,3807.1,3806.7,0.001]
[1760700883571,1.728,3807.0,3806.7,0.001]
[1760700883767,1.728,3807.2,3806.7,0.001]
[1760700884094,2.62653806,3807.3,3806.7,0.001]
[1760700884095,1.728,3807.4,3806.7,0.001]
[1760700884419,4.35487821,3806.8,3806.7,0.001]
[1760700886146,4.35487821,3806.8,3804.8,0.2164]
[1760700886147,0.6336,3806.6,3804.8,0.2164]
[1760700886459,2.6277114,3805.6,3805.1,0.2164]
[1760700886748,1.728,3806.0,3805.1,0.2164]
[1760700886950,2.62788864,3805.4,3805.1,0.2164]
[1760700887116,2.62778909,3805.5,3805.1,0.2164]
[1760700887325,2.62778909,3805.5,3804.8,0.6799]
[1760700887326,0.6336,3805.8,3804.8,0.2164]
[1760700887614,0.2138,3805.9,3804.5,0.2164]
[1760700887815,0.2138,3805.9,3804.0,0.2164]
[1760700887816,2.3616,3805.4,3804.0,0.6799]
[1760700888016,4.35625904,3804.8,3804.0,0.2164]
[1760700888328,2.62784464,3805.4,3804.0,0.6799]
[1760700888521,2.62802056,3805.2,3804.1,3.09221479]
[1760700888748,1.728,3805.2,3804.2,3.09217357]
[1760700889047,14.06004387,3804.9,3804.0,0.2164]
[1760700889260,1.728,3805.6,3803.5,0.001]
[1760700889261,2.62867357,3804.2,3803.5,0.001]
[1760700889418,2.62908823,3803.6,3803.5,0.001]
[1760700889618,4.35708823,3803.6,3803.5,0.001]
[1760700890875,4.49888823,3803.6,3803.5,0.001]
[1760700891384,1.728,3803.6,3803.5,0.001]
[1760700891532,0.41240237,3804.1,3803.5,0.001]
[1760700892156,0.2124,3803.6,3803.1,0.001]
[1760700892351,1.728,3803.9,3803.1,0.001]
[1760700892352,1.728,3803.4,3803.1,0.001]
[1760700892517,1.728,3803.4,3803.1,0.2259]
[1760700892716,0.7784,3803.3,3802.8,0.001]
[1760700893041,16.10416551,3803.0,3802.8,0.001]
[1760700893222,1.728,3803.0,3802.8,0.001]
[1760700893423,4.35750302,3803.0,3802.8,0.001]
[1760700893703,1.728,3803.0,3802.8,0.001]
[1760700894371,2.62922765,3803.4,3802.8,0.001]
[1760700894559,0.67943811,3803.8,3802.9,0.4333]
[1760700894560,0.04583811,3803.8,3802.9,0.4333]
[1760700894905,14.37616551,3804.0,3802.9,0.4333]
[1760700895070,0.41240876,3804.1,3803.7,0.2249]
[1760700895407,2.62873625,3804.2,3803.7,0.2249]
[1760700895589,1.728,3804.1,3803.7,0.2249]
[1760700895776,2.62875024,3804.1,3803.4,0.4323]
[1760700895977,2.62874522,3804.1,3803.4,0.4323]
[1760700896177,2.62882069,3804.0,3803.4,0.4323]
[1760700896379,2.62888284,3803.9,3803.3,0.2249]
[1760700896575,2.62895072,3803.8,3803.3,0.2249]
[1760700896774,2.62913759,3803.6,3802.9,0.4333]
[1760700897611,2.62902952,3803.7,3802.9,3.06287108]
[1760700897782,2.62894999,3803.8,3803.0,2.62948229]
[1760700898106,14.58586551,3803.9,3803.1,0.2249]
[1760700898323,1.728,3804.3,3803.2,2.62931344]
[1760700898484,1.728,3804.0,3803.2,2.62931344]
[1760700898680,1.728,3804.0,3803.3,2.62929257]
[1760700898890,14.37616551,3804.4,3803.4,2.62916113]
[1760700899092,14.37616551,3804.4,3803.3,0.45859295]
[1760700899276,1.728,3804.6,3803.8,2.62888646]
[1760700899478,1.728,3804.6,3803.2,2.65561061]
[1760700899479,2.62843247,3804.6,3803.9,0.4323]
[1760700899721,0.41236355,3804.7,3803.7,2.62895773]
[1760700899722,2.628535,3804.5,3803.7,2.62898035]
[1760700899925,2.62841915,3804.6,3803.8,2.6289421]
[1760700900097,4.56884346,3804.7,3803.9,2.62886512]
[1760700900304,2.6286581,3804.3,3803.4,0.4323]
[1760700900500,0.002,3803.6,3803.5,2.62914689]
[1760700900705,0.002,3803.6,3803.1,0.2249]
[1760700900903,14.37616551,3803.3,3802.7,0.001]
[1760700901196,2.62950302,3803.0,3802.7,0.001]
[1760700901701,4.45870302,3803.0,3802.7,0.001]
[1760700902289,1.728,3803.0,3802.7,0.001]
[1760700902510,0.6356,3803.6,3802.7,2.63066587]
[1760700902511,14.37816551,3803.6,3802.7,2.63066587]
[1760700902808,0.002,3803.6,3802.9,0.4592]
[1760700902995,0.002,3803.6,3803.0,2.62943869]
[1760700903201,0.002,3803.6,3803.0,2.62947872]
[1760700903396,0.1312,3803.5,3803.4,2.62922648]
[1760700903610,0.1312,3803.5,3803.4,0.4582]
[1760700904007,0.1312,3803.5,3803.4,3.08742648]
[1760700904422,0.002,3803.6,3803.5,2.62915735]
[1760700904722,0.002,3803.6,3803.5,3.08735735]
[1760700904940,0.0012,3803.6,3803.5,3.08735735]
[1760700905243,0.0012,3803.6,3803.5,4.84164892]
[1760700905537,0.0012,3803.6,3803.5,4.81535735]
[1760700906114,0.0012,3803.6,3803.5,4.97284892]
[1760700906320,0.0012,3803.6,3803.5,3.08735735]
[1760700906907,0.0012,3803.6,3803.5,3.11364892]
[1760700907560,0.002,3804.4,3804.3,2.62860447]
[1760700908012,0.002,3804.4,3804.3,3.11309051]
[1760700908715,0.002,3804.4,3804.3,4.84109051]
[1760700908920,0.002,3804.4,3804.3,4.81480447]
[1760700909346,0.002,3804.4,3804.3,4.84109051]
[1760700910057,0.002,3804.4,3804.3,4.81480447]
[1760700910349,0.002,3804.4,3803.2,0.4582]
[1760700910555,0.101,3804.4,3803.8,2.62894448]
[1760700910703,0.002,3804.4,3803.2,0.4582]
[1760700910907,0.002,3804.4,3804.0,2.62879435]
[1760700911122,0.002,3804.4,3803.8,2.62893294]
[1760700911435,0.002,3804.4,3803.7,2.6290045]
[1760700911810,0.002,3804.4,3803.6,2.62908258]
[1760700912008,1.728,3804.3,3803.2,0.4582]
[1760700912212,1.728,3804.3,3803.1,0.214]
[1760700912213,2.62868616,3804.2,3803.1,0.214]
[1760700912411,2.62862472,3804.3,3803.1,0.214]
[1760700912823,1.728,3804.3,3803.3,2.62928976]
[1760700913049,2.63055752,3804.4,3803.4,0.02629226]
[1760700913050,0.002,3804.4,3803.4,0.02629226]
[1760700913247,0.002,3804.4,3803.7,2.6289892]
[1760700913438,0.002,3804.4,3804.0,2.62879718]
[1760700913619,0.002,3804.4,3804.0,2.62874352]
[1760700914147,0.002,3804.4,3803.3,0.4582]
[1760700914446,0.002,3804.4,3803.1,0.214]
[1760700914656,2.62865905,3804.3,3803.2,2.62931042]
[1760700914817,0.002,3804.4,3803.1,0.214]
[1760700915017,0.002,3804.4,3803.7,2.6290024]
[1760700915551,2.6288014,3804.1,3803.1,2.84338153]
[1760700915846,2.62869492,3804.2,3803.1,0.214]
[1760700916046,2.0336,3804.3,3802.9,0.001]
[1760700916257,0.1312,3803.2,3803.0,2.62945207]
[1760700916552,0.1312,3803.2,3802.9,0.001]
[1760700916734,0.2076,3803.3,3802.9,0.001]
[1760700917234,0.2065,3803.5,3803.0,2.62949816]
[1760700917433,0.1312,3803.0,3802.9,2.63056872]
[1760700917847,0.1312,3803.0,3802.9,0.001]
[1760700918164,0.1312,3803.0,3802.9,2.63057216]
[1760700918348,0.1312,3803.0,3802.9,0.001]
[1760700918824,0.1312,3803.0,3802.9,2.63057216]
[1760700920439,0.1312,3803.0,3802.9,0.001]
[1760700920754,0.1312,3803.0,3802.9,2.63057216]
[1760700921073,0.1312,3803.0,3802.9,0.001]
[1760700921274,0.1312,3803.0,3802.9,2.63057216]
[1760700921469,0.1312,3803.0,3802.9,3.06597216]
[1760700921675,0.2054,3803.8,3803.3,2.6292506]
[1760700922052,0.1022,3803.7,3802.9,0.001]
[1760700922250,2.62950302,3803.0,3802.9,0.001]
[1760700922450,4.35750302,3803.0,3802.9,0.001]
[1760700922679,5.09330302,3803.0,3802.9,0.001]
[1760700922879,15.29724216,3802.9,3802.8,0.001]
[1760700923045,22.68649931,3802.8,3802.7,0.001]
[1760700923242,18.41979531,3802.8,3802.7,0.001]
[1760700923483,8.49024178,3802.5,3802.2,0.001]
[1760700923652,0.6336,3801.5,3800.8,0.001]
[1760700923984,19.58121369,3801.2,3800.8,0.001]
[1760700924159,3.26455582,3800.9,3800.8,0.001]
[1760700924358,4.99255582,3800.9,3800.8,0.001]
[1760700924678,5.30735582,3800.9,3800.8,0.001]
[1760700924886,5.72011812,3800.9,3800.8,0.001]
[1760700925392,2.1407623,3800.9,3800.8,0.001]
[1760700925560,4.87071812,3800.9,3800.8,0.001]
[1760700925751,5.50431812,3800.9,3800.8,0.001]
[1760700927950,3.26483273,3800.5,3800.4,0.001]
[1760700928193,19.36899824,3800.5,3800.4,0.001]
[1760700928367,25.87684224,3800.5,3800.4,0.001]
[1760700928681,22.87681889,3800.5,3800.4,0.001]
[1760700928885,32.23402089,3800.5,3800.4,0.001]
[1760700929083,32.23402089,3800.5,3797.2,2.63347835]
[1760700929084,0.6336,3799.9,3797.5,0.4354]
[1760700929288,2.3616,3799.1,3797.9,2.63402426]
[1760700929499,2.63246692,3798.8,3797.9,2.63402788]
[1760700929653,0.6336,3799.1,3797.9,2.63402788]
[1760700929654,2.3616,3799.1,3797.9,0.001]
[1760700929852,0.6336,3799.2,3798.4,0.4354]
[1760700930164,0.41292819,3799.4,3798.4,3.068067]
[1760700930467,0.41292819,3799.4,3798.4,0.4354]
[1760700930672,2.63228061,3799.0,3798.3,0.001]
[1760700930980,0.41292819,3799.4,3798.6,2.63249883]
[1760700931160,1.728,3800.5,3798.7,0.4354]
[1760700931347,1.728,3799.6,3799.3,0.2306]
[1760700931553,4.3597775,3799.8,3798.9,2.63227513]
[1760700931777,1.728,3799.8,3799.1,2.63220236]
[1760700932050,0.1312,3798.8,3798.3,0.001]
[1760700932255,2.63232641,3799.0,3798.3,0.001]
[1760700932498,0.2064,3799.7,3798.4,3.06805957]
[1760700932682,0.1312,3798.5,3798.4,3.06805957]
[1760700933084,0.1312,3798.5,3798.4,3.09438644]
[1760700933397,0.1312,3798.9,3798.4,0.4354]
[1760700933564,0.1312,3798.5,3798.4,0.4354]
[1760700933902,0.1312,3798.5,3798.3,0.001]
[1760700934803,0.1312,3798.5,3798.4,0.4354]
[1760700935218,0.1312,3798.5,3798.3,0.001]
[1760700935517,0.1312,3798.5,3798.4,0.4354]
[1760700936518,0.1312,3798.5,3798.4,3.06808744]
[1760700936891,0.1312,3798.5,3798.4,3.06908744]
[1760700937220,0.6183222,3799.8,3798.4,0.4364]
[1760700937425,0.1312,3799.0,3798.9,2.63234094]
[1760700937715,0.1312,3799.0,3798.7,2.63246838]
[1760700937920,0.1312,3799.0,3798.4,0.1322]
[1760700938118,0.1065,3799.6,3798.4,0.001]
[1760700938616,2.3616,3799.4,3798.4,0.001]
[1760700938773,5.20881813,3798.5,3798.4,0.001]
[1760700938974,1.728,3798.5,3798.4,0.001]
[1760700939374,0.6336,3799.5,3798.4,0.001]
[1760700939576,0.2125,3798.8,3798.4,0.001]
[1760700939887,2.63261813,3798.5,3798.4,0.001]
[1760700940306,4.47021813,3798.5,3798.4,0.001]
[1760700941017,1.728,3798.5,3798.4,0.001]
[1760700941480,4.36061813,3798.5,3798.4,0.001]
[1760700941681,1.728,3798.5,3798.4,0.001]
[1760700942207,4.36061813,3798.5,3798.4,0.001]
[1760700942511,1.728,3798.5,3798.4,0.001]
[1760700942897,4.36061813,3798.5,3798.4,0.001]
[1760700943276,1.728,3798.5,3798.4,0.001]
[1760700943719,0.41294357,3798.9,3798.4,0.001]
[1760700944209,2.6323445,3798.9,3798.4,0.001]
[1760700944714,0.04588243,3799.2,3798.5,2.63257]
[1760700944888,2.63199452,3799.4,3798.4,0.001]
[1760700945073,2.63194669,3799.5,3798.5,2.63258274]
[1760700945281,2.6320638,3799.3,3798.5,2.63258274]
[1760700945491,2.63214447,3799.2,3798.5,2.63258274]
[1760700945688,0.1107,3799.6,3798.4,0.001]
[1760700945893,0.41293091,3799.7,3799.1,0.2306]
[1760700946102,0.41293091,3799.7,3798.4,0.02732687]
[1760700946103,2.63238568,3798.9,3798.4,0.001]
[1760700946295,2.6323546,3798.9,3798.4,0.001]
[1760700946495,0.2103,3798.8,3798.4,0.001]
[1760700946911,2.63227764,3799.0,3798.4,0.001]
[1760700947114,1.728,3799.5,3798.6,2.63248665]
[1760700947414,2.63214113,3799.2,3798.5,3.0680181]
[1760700947612,1.728,3799.3,3798.5,0.4354]
[1760700947916,1.09236739,3799.7,3798.6,2.63253804]
[1760700948118,0.1312,3798.5,3798.4,0.001]
[1760700948317,0.1312,3798.5,3798.4,2.6336847]
[1760700948794,0.1312,3798.5,3798.4,3.0690847]
[1760700949316,2.63192525,3799.5,3798.4,0.001]
[1760700949625,0.099,3799.6,3798.4,0.001]
[1760700949626,2.84265316,3798.9,3798.4,0.001]
[1760700949791,0.2103,3798.9,3798.4,0.001]
[1760700950009,0.1001,3799.4,3798.4,0.001]
[1760700950010,2.6322864,3799.0,3798.4,0.001]
[1760700950211,2.63228202,3799.0,3798.4,0.001]
[1760700950418,2.84144728,3799.1,3798.4,2.63367317]
[1760700950616,0.2092,3799.1,3798.4,0.001]
[1760700951019,2.63228776,3799.0,3798.4,0.001]
[1760700951417,2.63227165,3799.0,3798.4,0.001]
[1760700951617,1.728,3799.2,3798.6,2.63252706]
[1760700951821,0.1312,3798.6,3798.5,2.63260245]
[1760700952026,2.63221145,3799.1,3798.4,2.63366052]
[1760700952206,2.63134592,3799.2,3798.4,2.63361861]
[1760700952407,1.728,3799.3,3798.4,2.63361861]
[1760700952408,0.04588065,3799.7,3798.4,0.001]
[1760700952640,0.6336,3799.6,3798.4,2.63363883]
[1760700952804,1.728,3799.2,3798.4,0.001]
[1760700953010,0.1312,3798.6,3798.4,0.02732687]
[1760700953206,2.73381813,3798.5,3798.4,0.001]
[1760700953439,5.09541813,3798.5,3798.4,0.001]
[1760700953640,41.32532727,3798.0,3797.9,1e-08]
[1760700953844,0.6336,3797.6,3795.7,0.4546]
[1760700954041,0.6336,3797.6,3794.7,2.85042744]
[1760700954042,0.216,3795.8,3794.7,0.2152]
[1760700954245,0.216,3795.8,3794.8,2.63513061]
[1760700954246,2.63457159,3795.7,3794.8,2.63513061]
[1760700954419,2.63436672,3796.0,3795.0,2.63498605]
[1760700954420,1.728,3795.9,3795.0,2.63498605]
[1760700954617,2.63441869,3796.0,3794.7,0.6698]
[1760700954618,2.63435194,3796.0,3794.7,0.6698]
[1760700954830,0.69154277,3796.1,3794.7,0.2152]
[1760700954831,2.63478465,3795.4,3794.7,0.2152]
[1760700955006,2.63459217,3795.7,3794.7,0.2152]
[1760700955210,0.1013,3795.9,3794.0,0.6698]
[1760700955443,2.63483234,3795.4,3794.5,2.63535901]
[1760700955822,1.728,3795.9,3794.6,3.08991009]
[1760700956143,0.2149,3796.1,3794.6,0.4546]
[1760700956144,2.63478836,3795.4,3794.6,0.4546]
[1760700956335,0.1013,3796.0,3794.6,0.4546]
[1760700956513,0.1013,3796.0,3794.6,3.08991837]
[1760700956713,2.63471025,3795.5,3794.6,3.08991837]
[1760700956944,2.63480371,3795.4,3794.6,3.08991837]
[1760700957139,2.63480371,3795.4,3794.3,2.63553076]
[1760700957140,14.14902456,3796.0,3794.0,0.2152]
[1760700957454,2.63490174,3795.3,3794.1,0.4546]
[1760700957742,2.63492628,3795.2,3794.4,2.63542464]
[1760700957944,0.7349,3795.8,3794.1,0.4546]
[1760700958119,2.63518323,3794.9,3794.0,2.85088735]
[1760700958311,2.63520236,3794.8,3794.0,0.2152]
[1760700958508,2.635194,3794.8,3794.0,2.85092872]
[1760700958712,0.211,3794.9,3794.1,2.63567117]
[1760700958935,0.3144,3795.3,3794.4,2.63540238]
[1760700959140,0.3144,3795.3,3794.6,2.63531846]
[1760700959141,0.2099,3795.3,3794.6,2.63531846]
[1760700959442,0.2099,3795.3,3794.0,0.2152]
[1760700959443,2.635048,3795.0,3794.3,2.63551645]
[1760700959646,2.635048,3795.0,3794.0,2.85093635]
[1760700959647,0.6336,3795.1,3794.0,0.2152]
[1760700959845,2.6353948,3794.5,3794.0,0.2152]
[1760700960013,2.63537621,3794.6,3793.7,0.4546]
[1760700960346,2.3616,3795.1,3794.4,0.2152]
[1760700960347,0.41333513,3795.1,3794.4,0.2152]
[1760700960545,1.728,3794.8,3794.4,0.2152]
[1760700961046,2.63519289,3794.8,3794.1,2.85085263]
[1760700961249,2.6353249,3794.6,3794.1,0.2152]
[1760700961426,2.63534289,3794.6,3794.1,0.2152]
[1760700961817,2.63534289,3794.6,3793.8,2.63585892]
[1760700961818,2.63537176,3794.6,3793.8,2.63585892]
[1760700962013,0.41333513,3795.1,3793.1,0.4568]
[1760700962014,0.1056,3794.5,3793.1,0.4568]
[1760700962214,0.41333513,3795.1,3793.1,0.0008]
[1760700962215,2.63563528,3794.2,3793.1,0.0008]
[1760700962456,0.1056,3794.4,3793.1,0.2312]
[1760700962657,2.63586667,3793.9,3793.1,0.2312]
[1760700962818,0.41342369,3794.6,3793.2,0.4568]
[1760700963019,0.41342369,3794.6,3794.1,2.63561807]
[1760700963320,2.63580294,3794.0,3793.2,2.63624056]
[1760700963539,0.1056,3794.5,3793.1,1.9592]
[1760700963540,0.1312,3793.4,3793.1,2.86750418]
[1760700963742,0.1056,3794.5,3793.2,0.4568]
[1760700963939,0.6336,3794.4,3793.1,0.2312]
[1760700964458,2.63513564,3794.9,3793.2,0.4568]
[1760700964616,0.3133,3795.0,3793.3,0.02636227]
[1760700964817,0.41339443,3794.9,3793.4,2.1848]
[1760700965018,0.2067,3795.0,3793.7,1.728]
[1760700965216,2.63518736,3794.8,3794.1,2.6356488]
[1760700965419,0.2067,3795.0,3793.9,1.728]
[1760700965648,0.2067,3795.0,3793.1,0.2312]
[1760700965649,2.63529669,3794.7,3793.5,0.4568]
[1760700965848,0.2067,3795.0,3794.1,2.63560304]
[1760700966046,2.63511554,3794.9,3794.2,2.63560158]
[1760700966256,0.2067,3795.0,3794.3,2.63552882]
[1760700966556,0.62325823,3795.3,3794.4,0.48315462]
[1760700966557,0.41335823,3795.3,3794.4,0.48315462]
[1760700966755,0.2099,3795.8,3794.4,0.4568]
[1760700966954,0.2149,3796.1,3795.2,0.2312]
[1760700967159,0.1087,3796.7,3795.3,0.02634837]
[1760700967160,0.41327133,3795.9,3795.3,0.02634837]
[1760700967373,0.2087,3797.1,3795.8,2.63442189]
[1760700967522,2.63365815,3797.0,3795.2,0.2312]
[1760700967723,0.1107,3796.9,3795.2,0.2312]
[1760700967957,14.35772456,3797.1,3795.2,2.86605374]
[1760700967958,2.74449688,3796.8,3795.2,2.86605374]
[1760700968124,0.1107,3796.8,3791.6,0.14999999]
[1760700968323,14.35772456,3797.1,3794.1,0.688]
[1760700968324,0.6336,3795.7,3794.1,0.688]
[1760700968521,0.6336,3795.5,3794.1,0.688]
[1760700968727,0.3197,3795.6,3794.1,0.2312]
[1760700968728,2.63536605,3794.6,3794.1,0.2312]
[1760700968957,0.099,3795.4,3794.2,0.48315601]
[1760700968958,2.6349611,3795.2,3794.2,0.48315601]
[1760700969162,0.2207,3795.6,3794.2,0.02635601]
[1760700969333,0.2207,3795.6,3793.5,0.4568]
[1760700969334,0.1001,3795.1,3793.5,0.4568]
[1760700969864,2.63518498,3794.8,3793.5,0.4568]
[1760700970026,0.2086,3794.7,3793.5,0.4568]
[1760700970223,0.2086,3794.7,3793.1,2.86756278]
[1760700970224,2.63595266,3793.7,3793.1,0.2312]
[1760700970428,2.6357753,3794.0,3793.1,0.2312]
[1760700970629,0.1012,3794.6,3793.1,0.2312]
[1760700970630,2.63546278,3794.4,3793.1,0.2312]
[1760700970851,2.6360083,3793.7,3793.1,0.2312]
[1760700971052,2.63602654,3793.6,3793.1,0.2312]
[1760700971268,2.63595825,3793.7,3793.1,0.2312]
[1760700971646,2.63567117,3794.1,3793.1,0.2312]
[1760700971964,2.63579644,3794.0,3793.3,2.63617656]
[1760700972162,2.63567354,3794.1,3793.4,2.63613024]
[1760700972371,0.2086,3794.7,3793.5,2.63607308]
[1760700972372,2.63559416,3794.3,3793.5,2.63607308]
[1760700972571,2.63551956,3794.4,3793.6,2.63595521]
[1760700972775,2.63551956,3794.4,3793.4,0.4568]
[1760700973076,2.63561035,3794.2,3793.1,0.2312]
[1760700973274,2.63558208,3794.3,3793.6,2.63599946]
[1760700973577,0.2086,3794.7,3793.1,0.2312]
[1760700973752,0.1312,3793.8,3793.3,2.63622703]
[1760700973955,0.1312,3793.8,3793.5,2.63604217]
[1760700974279,0.1312,3793.8,3793.7,2.63594907]
[1760700974638,0.1312,3793.8,3793.7,3.11910856]
[1760700974837,0.41339664,3795.0,3793.7,0.48315949]
[1760700975044,0.1033,3795.9,3793.8,2.63587959]
[1760700975244,2.85538375,3795.6,3794.9,0.2312]
[1760700975583,0.1033,3795.9,3794.9,0.2312]
[1760700975584,2.85396635,3795.9,3795.1,2.63492593]
[1760700975882,0.1312,3795.6,3795.4,2.63470414]
[1760700976068,0.1304,3795.6,3795.5,2.63469898]
[1760700976389,0.1312,3795.9,3795.5,0.4568]
[1760700976574,0.2173,3795.8,3795.2,0.1312]
[1760700976776,0.1312,3795.6,3795.3,2.63483743]
[1760700977078,0.1312,3795.6,3795.4,2.6347595]
[1760700977253,0.1312,3795.6,3795.3,0.4568]
[1760700977254,0.1312,3795.6,3795.2,2.63490533]
[1760700977582,0.2077,3796.5,3795.7,2.63450698]
[1760700977583,0.1312,3795.8,3795.7,2.63450698]
[1760700977783,0.1312,3795.8,3795.3,0.4568]
[1760700977948,0.1312,3795.8,3794.9,2.86631008]
[1760700977949,0.1098,3795.8,3794.9,0.2312]
[1760700978154,0.2151,3795.9,3793.9,0.2312]
[1760700978155,0.1312,3795.1,3794.1,3.09246918]
[1760700978484,0.1312,3794.7,3794.2,0.1312]
[1760700978653,0.1312,3794.7,3794.3,2.63553224]
[1760700978848,0.1312,3794.7,3794.2,0.588]
[1760700978849,0.1312,3794.7,3794.4,3.09223779]
[1760700979053,0.1312,3794.7,3794.6,2.63532388]
[1760700979368,0.1312,3795.0,3794.5,0.4568]
[1760700979548,0.1312,3795.0,3794.9,2.63511554]
[1760700980394,0.1312,3795.0,3794.6,0.4568]
[1760700980558,0.1312,3795.0,3794.6,3.09210744]
[1760700980759,0.1312,3795.0,3794.4,0.1312]
[1760700980965,0.1312,3795.0,3794.8,2.63518018]
[1760700981301,0.1312,3795.0,3794.7,2.63524148]
[1760700981503,0.1312,3795.0,3794.5,0.4568]
[1760700981504,0.1312,3795.0,3794.8,2.63517025]
[1760700981792,0.1312,3795.0,3794.9,2.63511554]
[1760700981958,0.6336,3796.9,3795.3,2.63482078]
[1760700982163,0.1312,3795.4,3795.2,2.8690061]
[1760700982602,0.1312,3795.4,3795.2,0.2341]
[1760700982771,0.1312,3795.4,3795.2,2.8689803]
[1760700982968,0.1312,3795.4,3795.3,2.63483782]
[1760700984184,0.1312,3795.4,3795.2,2.86896072]
[1760700984385,0.1312,3795.4,3795.3,2.63483782]
[1760700984579,0.1312,3795.4,3795.2,0.2341]
[1760700984778,0.1312,3795.4,3795.1,2.63496225]
[1760700985179,0.1312,3795.4,3795.2,2.63489202]
[1760700985384,0.1312,3795.4,3795.0,0.2341]
[1760700985594,0.1312,3795.4,3795.3,2.63483782]
[1760700985782,0.1312,3795.4,3795.0,0.2341]
[1760700986302,0.1312,3795.4,3795.1,2.63492132]
[1760700986597,0.1312,3795.4,3794.7,0.4714]
[1760700986598,0.1108,3795.7,3794.6,0.2341]
[1760700986773,0.1312,3795.0,3794.6,2.86941324]
[1760700987091,0.1312,3795.0,3794.6,0.2341]
[1760700987319,0.1312,3795.0,3794.8,2.63513539]
[1760700987484,0.1312,3795.0,3794.9,2.63511554]
[1760700987713,0.1312,3795.0,3794.6,0.2341]
[1760700988025,0.1312,3795.0,3794.7,3.10663046]
[1760700988224,0.1312,3795.0,3794.6,0.2341]
[1760700988422,2.63485456,3795.3,3794.1,2.63561934]
[1760700988423,0.2066,3794.9,3794.1,2.63561934]
[1760700988589,0.2066,3794.9,3793.6,0.001]
[1760700988790,0.2066,3794.9,3793.7,0.1312]
[1760700988791,0.1312,3794.3,3793.7,0.1312]
[1760700989021,0.1312,3794.3,3794.2,2.6356017]
[1760700989222,0.1312,3794.3,3794.1,2.86976241]
[1760700989721,0.1312,3794.3,3793.7,0.1312]
[1760700989722,0.1312,3794.3,3794.2,2.6356017]
[1760700989925,0.1312,3794.3,3793.8,2.63587959]
[1760700990093,0.1312,3794.3,3793.7,2.76712393]
[1760700990288,0.1312,3794.3,3793.7,2.76712536]
[1760700990787,0.1118,3794.7,3793.6,0.001]
[1760700990986,2.63572579,3794.1,3793.6,0.001]
[1760700991221,0.1312,3793.8,3793.6,0.001]
[1760700991420,0.1312,3793.8,3793.7,2.63594907]
[1760700991620,0.1118,3794.7,3793.8,2.63585057]
[1760700991621,0.1312,3794.1,3793.8,2.63585057]
[1760700991822,0.1312,3794.1,3793.6,0.4724]
[1760700992023,0.1312,3794.1,3793.8,2.63587033]
[1760700992205,0.1312,3794.1,3793.7,2.63593028]
[1760700992825,0.1312,3794.1,3794.0,2.63574064]
[1760700993030,2.84176866,3794.9,3794.0,2.63574064]
[1760700993229,2.84176866,3794.9,3793.8,0.49775879]
[1760700993230,0.1312,3794.4,3794.1,2.86976775]
[1760700993418,0.1312,3794.4,3794.3,2.63553224]
[1760700993729,0.1312,3794.6,3794.2,0.4714]